fUSD/lending_fUSD_20240805
["ID","MTS","AMOUNT","RATE_DAILY","PERIOD"]
[334192505,1722821448244,-150.0,0.00024661,2]
[334192507,1722821448255,-150.0,0.00024661,2]
[334192509,1722821448266,-150.0,0.00024662,2]
[334192511,1722821448276,-150.0,0.00024663,2]
[334192513,1722821448286,-150.0,0.00024672,2]
[334192515,1722821448296,-150.0,0.00024678,2]
[334192517,1722821448305,-500.0,0.00024689,2]
[334192519,1722821448314,-150.0,0.00024698,2]
[334192521,1722821448324,-150.0,0.000247,2]
[334192523,1722821448333,-1400.0,0.000247,9]
[334192525,1722821448343,-300.0,0.000247,9]
[334192527,1722821448353,-150.0,0.00024705,2]
[334192529,1722821448362,-150.0,0.00024712,2]
[334192531,1722821448372,-150.0,0.00024714,2]
[334192533,1722821448381,-150.0,0.00024717,2]
[334192535,1722821448391,-150.0,0.00024719,2]
[334192536,1722821448400,-150.0,0.00024735,2]
[334192538,1722821448410,-150.0,0.00024746,2]
[334192541,1722821448421,-24493.024917,0.0002475,2]
[334192543,1722821448431,-154.9632,0.0002475,2]
[334192545,1722821448446,-150.0,0.00024756,2]
[334192547,1722821448456,-150.0,0.00024766,2]
[334192549,1722821448465,-150.0,0.00024776,2]
[334192551,1722821448475,-3355.125382,0.000248,2]
[334192553,1722821448485,-2127.0,0.000248,9]
[334192555,1722821448496,-800.0,0.000248,9]
[334192557,1722821448506,-37869.27958319,0.000248,2]
[334192559,1722821448516,-150.0,0.00024801,2]
[334192561,1722821448525,-150.0,0.00024811,2]
[334192563,1722821448535,-150.0,0.00024813,2]
[334192565,1722821448545,-150.0,0.00024813,2]
[334192567,1722821448554,-150.0,0.00024816,2]
[334192569,1722821448564,-150.0,0.00024828,2]
[334192571,1722821448573,-150.0,0.00024828,2]
[334192572,1722821448583,-300.0,0.00024829,2]
[334192574,1722821448593,-150.0,0.00024836,2]
[334192576,1722821448602,-375.6646924,0.00024843,2]
[334192579,1722821448612,-150.0,0.00024859,2]
[334192581,1722821448622,-150.0,0.00024859,2]
[334192582,1722821448632,-150.0,0.00024862,2]
[334192583,1722821448643,-500.0,0.00024866,2]
[334192584,1722821448653,-150.0,0.00024867,2]
[334192586,1722821448662,-150.0,0.00024873,2]
[334192588,1722821448672,-150.0,0.00024877,2]
[334192589,1722821448689,-150.0,0.00024878,2]
[334192590,1722821448699,-150.0,0.0002488,2]
[334192591,1722821448709,-209.15317671,0.00024883,2]
[334192592,1722821448719,-150.0,0.00024883,2]
[334192593,1722821448730,-150.0,0.00024885,2]
[334192594,1722821448740,-150.0,0.00024887,2]
[334192595,1722821448750,-1042.63262491,0.000249,2]
[334192596,1722821448761,-768.10934617,0.000249,2]
[334192597,1722821448770,-2381.29355487,0.000249,2]
[334192598,1722821448781,-306.41,0.000249,31]
[334192599,1722821448790,-306.41,0.000249,31]
[334192600,1722821448800,-306.41,0.000249,31]
[334192601,1722821448810,-306.41,0.000249,31]
[334192602,1722821448820,-306.41,0.000249,31]
[334192603,1722821448829,-306.41,0.000249,31]
[334192604,1722821448840,-306.41,0.000249,31]
[334192605,1722821448850,-306.41,0.000249,31]
[334192606,1722821448860,-306.41,0.000249,31]
[334192607,1722821448870,-306.41,0.000249,31]
[334192608,1722821448882,-306.41,0.000249,31]
[334192609,1722821448892,-306.41,0.000249,31]
[334192610,1722821448902,-306.41,0.000249,31]
[334192611,1722821448912,-306.41,0.000249,31]
[334192612,1722821448922,-306.41,0.000249,31]
[334192613,1722821448932,-306.41,0.000249,31]
[334192614,1722821448947,-306.41,0.000249,31]
[334192615,1722821448957,-306.41,0.000249,31]
[334192616,1722821448967,-306.41,0.000249,31]
[334192617,1722821448977,-306.41,0.000249,31]
[334192618,1722821448987,-150.0,0.00024903,2]
[334192619,1722821448998,-150.0,0.0002491,2]
[334192620,1722821449008,-150.0,0.00024912,2]
[334192621,1722821449018,-159.59620757,0.0002492,10]
[334192622,1722821449028,-42325.86044124,0.00024925,2]
[334192623,1722821449038,-150.0,0.00024928,2]
[334192624,1722821449049,-150.0,0.0002493,2]
[334192625,1722821449058,-150.0,0.00024934,2]
[334192626,1722821449068,-150.0,0.00024942,2]
[334192627,1722821449077,-150.0,0.0002495,2]
[334192628,1722821449087,-150.0,0.00024959,2]
[334192629,1722821449097,-150.0,0.00024963,2]
[334192630,1722821449107,-150.0,0.00024963,2]
[334192631,1722821449117,-150.0,0.00024964,2]
[334192632,1722821449126,-150.0,0.00024966,2]
[334192633,1722821449136,-150.0,0.00024968,2]
[334192634,1722821449146,-150.0,0.00024973,2]
[334192635,1722821449155,-150.0,0.00024975,2]
[334192636,1722821449164,-150.0,0.00024981,2]
[334192637,1722821449174,-33426.57062151,0.00024982,31]
[334192638,1722821449186,-150.0,0.00024987,2]
[334192639,1722821449198,-1332.6119228,0.00024997,2]
[334192640,1722821449209,-2492.4185083,0.00024997,2]
[334192641,1722821449219,-7025.9391287,0.00024997,2]
[334192642,1722821449229,-378.2169808,0.00024997,2]
[334192643,1722821449238,-983.8761297,0.00024997,2]
[334192644,1722821449247,-6339.083921,0.00024997,2]
[334192645,1722821449257,-2419.7633,0.00024999,2]
[334192646,1722821449266,-2051.91195593,0.00024999,2]
[334192647,1722821449276,-150.01,0.00024999,2]
[334192648,1722821449286,-16036254.18135484,0.00025,2]
[334192649,1722821449295,-25362.10755368,0.00025,7]
[334192650,1722821449305,-2729148.78411174,0.00025,2]
[334192651,1722821449891,-1259768.48484226,0.00025,2]
[334192652,1722821449904,-4318653.40839491,0.00025,2]
[334192653,1722821449917,-7695389.50440479,0.00025,2]
[334192654,1722821449927,-4692271.56970754,0.00025,2]
[334192655,1722821449940,-1371614.02382407,0.00025,2]
[334192656,1722821449952,-79025.17598807,0.00025,2]
[334192657,1722821449961,-68509.10241289,0.00025,2]
[334192658,1722821449994,-1946.00126364,0.00025,2]
[334192659,1722821450005,-423.759,0.00025,2]
[334192660,1722821450016,-909.53373349,0.00025,2]
[334192661,1722821450027,-383.4,0.00025,2]
[334192662,1722821450038,-2335.09379928,0.00025,2]
[334192663,1722821450050,-5332.6,0.00025,2]
[334192664,1722821450061,-1238.30039979,0.00025,2]
[334192665,1722821450072,-261.26801414,0.00025,2]
[334192666,1722821450083,-11039.13777846,0.00025,2]
[334192667,1722821450094,-10803.8,0.00025,2]
[334192668,1722821450105,-88500.0,0.00025,2]
[334192669,1722821450116,-5231.0,0.00025,2]
[334192670,1722821450739,-155.24801748,9.962e-05,2]
[334192671,1722821450750,-167.25198253,0.00010501,2]
[334192672,1722821450806,-805.62801747,0.00010501,2]
[334192673,1722821450816,-5400.48698057,0.00011205,2]
[334192674,1722821450826,-298.85665814,0.00011324,2]
[334192675,1722821450835,-155.14459377,0.00011324,2]
[334192676,1722821450845,-1182.54315956,0.00011324,2]
[334192677,1722821450855,-299.43628421,0.00011324,2]
[334192678,1722821450865,-155.0,0.00011384,2]
[334192679,1722821450875,-526.23743645,0.00011384,2]
[334192680,1722821450884,-151.0,0.000138,2]
[334192681,1722821450893,-22644.47047611,0.00013889,2]
[334192682,1722821450902,-1112.66439902,0.0001695,2]
[334192683,1722821450912,-151.0,0.00023,7]
[334192684,1722821450923,-319.33643393,0.000249,2]
[334192685,1722821450933,-20902.62744865,0.00025,2]
[334192686,1722821451077,-1283.67442741,0.00025,2]
[334192687,1722821451089,-925.45647478,0.00025,2]
[334192688,1722821451131,-66.56,0.00025,2]
[334192689,1722821451144,-2661.95,0.00025,2]
[334192690,1722821451156,-1050.1,0.00025,2]
[334192691,1722821451167,-5455.97493693,0.00025,2]
[334192692,1722821451179,-559.40337528,0.00025,2]
[334192693,1722821451194,-4201.12604112,0.00025,2]
[334192694,1722821451246,-980.59545702,0.00025,2]
[334192695,1722821451258,-4324.11443451,0.00025,2]
[334192696,1722821451270,-7074.27,0.00025,2]
[334192697,1722821451282,-1049.4320334,0.00025,2]
[334192698,1722821451294,-3788.64017283,0.00025,2]
[334192699,1722821451305,-4398.6113376,0.00025,2]
[334192700,1722821451316,-4000.00021,0.00025,2]
[334192701,1722821452241,-948.02872572,9.962e-05,2]
[334192702,1722821452251,-1756.46848704,9.962e-05,2]
[334192703,1722821452263,-267.06272339,9.962e-05,2]
[334192704,1722821452275,-3891.58993161,9.962e-05,2]
[334192705,1722821452285,-972.88,0.00010501,2]
[334192706,1722821452295,-972.88,0.00010501,2]
[334192707,1722821452305,-972.88,0.00010501,2]
[334192708,1722821452315,-972.88,0.00010501,2]
[334192709,1722821452325,-357.18856989,0.00010501,2]
[334192710,1722821452337,-615.69143011,0.00010501,2]
[334192711,1722821452347,-722.96983282,0.00011324,2]
[334192712,1722821452357,-151.0,0.000138,2]
[334192713,1722821452366,-1207.063,0.00017133,2]
[334192714,1722821452376,-328.99221227,0.00021,2]
[334192715,1722821452386,-83.50939301,0.00025,2]
[334192716,1722821452395,-780.44033225,0.00025,2]
[334192717,1722821452405,-2653.33379955,0.00025,2]
[334192718,1722821452417,-570.77760096,0.00025,2]
[334192719,1722821452426,-150.0,0.00025,2]
[334192720,1722821452440,-3354.36583194,0.00025,2]
[334192721,1722821452452,-3017.81096327,0.00025,2]
[334192722,1722821452463,-1016.1,0.00025,2]
[334192723,1722821452475,-4202.89669979,0.00025,2]
[334192724,1722821452487,-23438.16864593,0.00025,2]
[334192725,1722821452543,-51222.55033825,0.00025,2]
[334192726,1722821452555,-42789.6,0.00025,2]
[334192727,1722821452566,-5629.65338953,0.00025,2]
[334192728,1722821452578,-5893.34352977,0.00025,2]
[334192729,1722821452590,-2786.62573317,0.00025,2]
[334192730,1722821452602,-794.19253862,0.00025,2]
[334192731,1722821452614,-1446.5731672,0.00025,2]
[334192732,1722821452700,-151.0,0.00023,7]
[334192733,1722821452710,-240.93715104,0.00025,2]
[334192734,1722821452721,-1098.75051472,0.00025,2]
[334192735,1722821454002,-505.5664408,0.00025,2]
[334192736,1722821454014,-7973.8124,0.00025,2]
[334192737,1722821454038,-5848.10623535,0.00025,2]
[334192738,1722821454050,-300.08603421,0.00025,2]
[334192739,1722821454062,-14299.44418069,0.00025,2]
[334192740,1722821454073,-22288.138245,0.00025,2]
[334192741,1722821454085,-2650.0,0.00025,2]
[334192742,1722821454097,-25826.2927234,0.00025,2]
[334192743,1722821454108,-1392.72234612,0.00025,2]
[334192744,1722821454120,-21698.54154,0.00025,2]
[334192745,1722821454131,-680.3546727,0.00025,2]
[334192746,1722821454142,-764.825,0.00025,2]
[334192747,1722821455171,-2022.4053,0.00010411,2]
[334192748,1722821455180,-150.0,0.00010959,2]
[334192749,1722821455193,-414.57551756,0.00011322,2]
[334192750,1722821455201,-528.60750449,0.00011525,2]
[334192751,1722821455209,-10527.99021344,0.00014451,2]
[334192752,1722821455219,-7903.09739216,0.00017357,2]
[334192753,1722821455229,-197.00575452,0.00017458,2]
[334192754,1722821455239,-87158.63785733,0.00025,2]
[334192755,1722821455251,-544.1436,0.00025,2]
[334192756,1722821455264,-739.06416704,0.00025,2]
[334192757,1722821455276,-8697.59382134,0.00025,2]
[334192758,1722821455289,-54787.41558365,0.00025,2]
[334192759,1722821455300,-2774.72902501,0.00025,2]
[334192760,1722821455311,-55489.51273293,0.00025,2]
[334192761,1722821455323,-2701.23101814,0.00025,2]
[334192762,1722821455335,-3747.63722744,0.00025,2]
[334192763,1722821455347,-1566.6,0.00025,2]
[334192764,1722821455358,-335.97564,0.00025,2]
[334192765,1722821455551,-623.89644729,0.000109,2]
[334192766,1722821455561,-78.8041193,0.00025,2]
[334192767,1722821455572,-344.02750387,0.00025,2]
[334192768,1722821455586,-52999.99999999,0.00025,2]
[334192769,1722821455597,-2700.67183772,0.00025,2]
[334192771,1722821455609,-359.31747,0.00025,2]
[334192772,1722821455621,-1975.92743783,0.00025,2]
[334192773,1722821455632,-1250.0945842,0.00025,2]
[334192774,1722821455645,-2128.84910156,0.00025,2]
[334192775,1722821455677,-853.93159,0.00025,2]
[334192776,1722821455693,-327.89854,0.00025,2]
[334192777,1722821455704,-283.906987,0.00025,2]
[334192778,1722821455715,-105144.11094618,0.00025,2]
[334192779,1722821455727,-642.55672526,0.00025,2]
[334192780,1722821455739,-581.97282197,0.00025,2]
[334192781,1722821457443,2564.58953236,8.219e-05,2]
[334192782,1722821458531,1637.62959816,8.219e-05,2]
[334192789,1722821507155,227.63850404,8.219e-05,2]
[334192790,1722821519012,300.47120413,8.219e-05,2]
[334192791,1722821523925,693.87520356,8.219e-05,2]
[334192792,1722821539933,3881.66832162,8.219e-05,2]
[334192796,1722821604177,227.63850404,8.219e-05,2]
[334192797,1722821696603,1989.78993996,8.219e-05,2]
[334192798,1722821711249,242.64,0.00027,120]
[334192799,1722821714120,1989.78993996,8.219e-05,2]
[334192800,1722821833127,150.5,0.00020989,120]
[334192801,1722821833416,158.64,0.00020989,120]
[334192802,1722821833449,771.0,0.00020989,120]
[334192803,1722821833717,150.5,0.00020979,120]
[334192804,1722821833865,771.0,0.00020979,120]
[334192805,1722821834592,150.5,0.00020969,120]
[334192806,1722821834640,771.0,0.00020969,120]
[334192807,1722821834711,150.5,0.00020989,120]
[334192808,1722821834818,771.0,0.00020989,120]
[334192809,1722821835160,150.5,0.00020979,120]
[334192810,1722821835296,771.0,0.00020979,120]
[334192811,1722821835622,150.5,0.00020969,120]
[334192812,1722821835803,771.0,0.00020969,120]
[334192813,1722821836092,150.5,0.00020989,120]
[334192814,1722821836213,771.0,0.00020989,120]
[334192815,1722821836548,212.72,0.00020979,120]
[334192816,1722821836775,771.0,0.00020979,120]
[334192817,1722821837439,771.0,0.0002498,120]
[334192818,1722821837710,780.96,0.0002497,120]
[334192820,1722821883587,227.61995131,8.219e-05,2]
[334192821,1722821883614,36136.16281967,8.219e-05,2]
[334192822,1722821953572,11700.0,0.00017798,120]
[334192823,1722821954032,11700.0,0.00017788,120]
[334192824,1722821954636,11700.0,0.00017778,120]
[334192825,1722821955131,11700.0,0.0002096,120]
[334192826,1722821955728,11700.0,0.0002095,120]
[334192827,1722821956208,11700.0,0.0002094,120]
[334192828,1722821956717,11700.0,0.0002395,120]
[334192829,1722821957198,11700.0,0.0002394,120]
[334192830,1722821957658,11700.0,0.0002489,120]
[334192831,1722821958506,11708.63,0.0002488,120]
[334192832,1722821966968,20379.93085183,8.219e-05,2]
[334192833,1722821975175,227.63850404,8.219e-05,2]
[334192834,1722821983096,1359.56,0.00027,120]
[334192836,1722822011160,722.79,8.219e-05,2]
[334192837,1722822071640,103059.0,9.415e-05,2]
[334192838,1722822124574,571.9,0.00027,120]
[334192839,1722822182077,2000.0,0.00027,120]
[334192840,1722822193023,2000.0,0.00027,120]
[334192842,1722822234875,250.0,9.51e-05,2]
[334192845,1722822280501,181.8,9.51e-05,2]
[334192846,1722822287659,24032.88,9.544e-05,2]
[334192847,1722822319047,2310.97,9.416e-05,2]
[334192848,1722822322655,2707.19,9.416e-05,2]
[334192849,1722822330731,398.69,9.434e-05,2]
[334192850,1722822347664,500.0,9.434e-05,2]
[334192851,1722822354045,9235.95,9.434e-05,2]
[334192852,1722822364257,456.13265168,0.00027,120]
[334192853,1722822380210,15788.0,9.51e-05,2]
[334192855,1722822412205,448.107202,9.533e-05,2]
[334192856,1722822414272,2564.58953236,9.434e-05,2]
[334192857,1722822418342,227.63850404,9.434e-05,2]
[334192858,1722822431865,214.64838398,9.434e-05,2]
[334192859,1722822497204,797.91,9.263e-05,2]
[334192860,1722822498291,2564.58953236,9.434e-05,2]
[334192861,1722822502652,1633.46873973,9.434e-05,2]
[334192862,1722822505041,-423.0,9.58e-05,2]
[334192863,1722822505067,-1106.69,9.581e-05,2]
[334192864,1722822505092,-806.58,9.732e-05,2]
[334192865,1722822505115,-150.0,9.781e-05,2]
[334192866,1722822505138,-300.0,9.798e-05,2]
[334192867,1722822505160,-11213.73,9.799e-05,2]
[334192868,1722822508780,814.79,8.219e-05,2]
[334192870,1722822524279,227.63850404,9.434e-05,2]
[334192874,1722822554351,1049.99995705,0.00017004,40]
[334192877,1722822584852,200.0,9.505e-05,2]
[334192878,1722822588078,9205.34,9.505e-05,2]
[334192879,1722822589422,490.31951624,9.434e-05,2]
[334192881,1722822598791,-318.0218,9.632e-05,2]
[334192882,1722822598924,-150.0,9.799e-05,2]
[334192883,1722822598961,-300.0,9.799e-05,2]
[334192884,1722822599006,-2027.492,9.8e-05,2]
[334192885,1722822599043,-5166.95222477,9.8e-05,2]
[334192886,1722822599098,-3695.32977523,9.8e-05,2]
[334192887,1722822599135,-632.4307,9.8e-05,2]
[334192888,1722822599168,-1000.0,9.8e-05,2]
[334192889,1722822599202,-390.7632,9.8e-05,2]
[334192890,1722822599240,-2243.94234954,9.8e-05,2]
[334192891,1722822599284,-916.28425864,9.8e-05,2]
[334192893,1722822616038,171.0,0.00027,120]
[334192894,1722822624578,565.79489114,0.00017004,50]
[334192912,1722822632866,-12198.20643107,9.658e-05,2]
[334192913,1722822632878,-963.36852264,9.658e-05,2]
[334192914,1722822632890,-608.946768,9.658e-05,2]
[334192916,1722822633160,-2734.35,9.658e-05,2]
[334192930,1722822638715,-7395.12827829,9.658e-05,2]
[334192931,1722822638725,-3301.93085381,9.8e-05,2]
[334192935,1722822639754,-969.37145854,9.8e-05,2]
[334192940,1722822639771,-443.34402449,9.8e-05,2]
[334192944,1722822639786,-2768.71155498,9.8e-05,2]
[334192948,1722822639797,-2500.0,9.8e-05,2]
[334192954,1722822639810,-2026.2416,9.8e-05,2]
[334192957,1722822639821,-1031.79947634,9.843e-05,2]
[334192962,1722822639833,-368.81882889,9.843e-05,2]
[334192966,1722822639845,-4124.99692165,9.843e-05,2]
[334192970,1722822639855,-14974.21307835,9.899e-05,2]
[334192974,1722822639867,-5313.6990875,9.899e-05,2]
[334192977,1722822639878,-8750.51773253,9.899e-05,2]
[334192980,1722822639888,-1250.95898577,9.899e-05,3]
[334192984,1722822639899,-956.96064347,9.899e-05,3]
[334192988,1722822639908,-1113.93944268,9.899e-05,3]
[334192990,1722822639917,-3999.07890678,9.9e-05,2]
[334192994,1722822639928,-27604.04831325,9.9e-05,2]
[334192997,1722822639940,-22243.24876,9.9e-05,2]
[334193000,1722822639951,-15269.56311417,9.9e-05,2]
[334193003,1722822639962,-176448.09233576,9.9e-05,2]
[334193007,1722822639973,-8015.83152111,9.9e-05,2]
[334193010,1722822639984,-1254.48307782,9.9e-05,2]
[334193013,1722822639995,-397.26,9.9e-05,2]
[334193016,1722822640007,-547.8,9.9e-05,2]
[334193020,1722822640023,-2509.08655385,9.9e-05,2]
[334193023,1722822640036,-1100.0,9.9e-05,2]
[334193025,1722822640048,-290.08119832,9.9e-05,2]
[334193171,1722822641706,-2470.83863807,9.9e-05,2]
[334193179,1722822641773,-0.00106,9.9e-05,2]
[334193181,1722822641785,-1820.01041548,9.9e-05,2]
[334193183,1722822641796,-5485.708854,9.9e-05,2]
[334193185,1722822641809,-275.67889539,9.9e-05,2]
[334193188,1722822641821,-1092.96,9.9e-05,2]
[334193190,1722822641834,-675.44229065,9.9e-05,2]
[334193250,1722822644115,-3983.14845078,9.9e-05,2]
[334193252,1722822644128,-2738.42975442,9.9e-05,2]
[334193253,1722822644139,-332.53242807,9.9e-05,2]
[334193256,1722822644151,-13185.71117633,9.9e-05,2]
[334193258,1722822644163,-313.74014422,9.9e-05,2]
[334193260,1722822644175,-1612.05477648,9.9e-05,2]
[334193262,1722822644186,-274.395,9.9e-05,2]
[334193264,1722822644198,-73272.72508165,9.9e-05,2]
[334193278,1722822645699,-1867.59936887,9.9e-05,2]
[334193279,1722822645722,-10529.22518602,9.9e-05,2]
[334193280,1722822645745,-3256.01299851,9.9e-05,2]
[334193281,1722822645757,-492.133,9.9e-05,2]
[334193282,1722822645768,-17415.16955264,9.9e-05,2]
[334193283,1722822645790,-1295.8630215,9.9e-05,2]
[334193284,1722822645814,-3986.02605801,9.9e-05,2]
[334193299,1722822646966,-2742.88662346,9.9e-05,2]
[334193300,1722822646981,-946.56424632,9.9e-05,2]
[334193301,1722822646995,-746.63919784,9.9e-05,2]
[334193302,1722822647010,-946.80415565,9.9e-05,2]
[334193303,1722822647180,-21082.83514458,9.9e-05,2]
[334193304,1722822647191,-1100.0,9.9e-05,3]
[334193305,1722822647202,-400.0,9.9e-05,3]
[334193306,1722822647214,-587.70486925,9.962e-05,2]
[334193307,1722822647226,-9168.41804855,9.962e-05,2]
[334193308,1722822647237,-5646.6967866,9.972e-05,2]
[334193309,1722822647249,-9999.99,9.98e-05,2]
[334193310,1722822647261,-9545.05,9.98e-05,2]
[334193311,1722822647273,-150.99,9.98e-05,2]
[334193312,1722822647284,-499.99,9.98e-05,2]
[334193313,1722822647295,-36606.88,9.98e-05,2]
[334193314,1722822647307,-207.75568405,9.997e-05,2]
[334193316,1722822647320,-412.90303818,0.0001,2]
[334193318,1722822647332,-719.52629142,0.0001,2]
[334193320,1722822647344,-449.29624025,0.0001,2]
[334193322,1722822647356,-264843.81082297,0.0001,2]
[334193327,1722822647392,-2150.000014,0.0001,2]
[334193343,1722822651855,510.0,0.00015068,120]
[334193344,1722822651947,510.0,0.00015342,120]
[334193345,1722822652128,510.0,0.00015616,120]
[334193346,1722822652195,510.0,0.0001589,120]
[334193347,1722822652430,510.0,0.00016164,120]
[334193348,1722822652819,510.0,0.00016438,120]
[334193349,1722822653398,510.0,0.00016712,120]
[334193350,1722822653476,510.0,0.00016986,120]
[334193351,1722822653718,510.0,0.0001726,120]
[334193352,1722822653952,510.0,0.00017534,120]
[334193353,1722822654199,510.0,0.00017808,120]
[334193354,1722822654498,510.0,0.00018082,120]
[334193355,1722822654790,510.0,0.00018356,120]
[334193356,1722822655054,510.0,0.0001863,120]
[334193357,1722822655309,170.62765808,0.00018904,120]
[334193358,1722822722114,-1216.92127538,9.658e-05,2]
[334193359,1722822722171,-1347.66825698,9.658e-05,2]
[334193360,1722822722207,-291.11941407,9.658e-05,2]
[334193362,1722822941250,3000.0,0.00025,60]
[334193363,1722822978819,1510.84,9.508e-05,2]
[334193364,1722822979583,3031.86,0.00025,60]
[334193365,1722823045651,524.79,9.488e-05,2]
[334193366,1722823055952,996.6,8.219e-05,2]
[334193368,1722823100331,2564.58953236,8.219e-05,2]
[334193369,1722823105746,1826.19961989,8.219e-05,2]
[334193370,1722823109921,227.63850404,8.219e-05,2]
[334193371,1722823111384,820.05472013,8.219e-05,2]
[334193372,1722823164698,5000.0,0.000245,60]
[334193378,1722823196272,23900.0,9.357e-05,2]
[334193380,1722823199762,227.63850404,8.219e-05,2]
[334193383,1722823224044,401.45,9.32e-05,2]
[334193385,1722823231643,-199.34,9.564e-05,2]
[334193386,1722823231667,-95.66,9.664e-05,2]
[334193388,1722823235590,400.0,9.379e-05,2]
[334193389,1722823254273,222.0,0.00027,120]
[334193390,1722823256581,278.57,9.359e-05,2]
[334193392,1722823271387,1472.1012826,9.379e-05,2]
[334193393,1722823294759,227.63850404,9.379e-05,2]
[334193394,1722823328605,175.32,9.492e-05,2]
[334193395,1722823357426,500.0,9.539e-05,2]
[334193396,1722823381777,227.63850404,9.492e-05,2]
[334193398,1722823475763,227.63850404,9.492e-05,2]
[334193401,1722823499769,3269.34132472,9.492e-05,2]
[334193402,1722823508702,333.36663823,9.492e-05,2]
[334193403,1722823511444,796.0177577,9.492e-05,2]
[334193404,1722823515310,291.76234945,9.492e-05,2]
[334193405,1722823516488,230.91161503,9.492e-05,2]
[334193406,1722823516616,155.13007392,9.492e-05,2]
[334193407,1722823542503,576.5963123,9.492e-05,2]
[334193408,1722823542643,485.39693971,9.492e-05,2]
[334193409,1722823544169,248.66925493,9.492e-05,2]
[334193410,1722823547037,1060.45,8.219e-05,2]
[334193411,1722823550075,412.17430767,9.492e-05,2]
[334193413,1722823577802,227.63850404,9.492e-05,2]
[334193414,1722823617979,157.87279422,9.492e-05,2]
[334193415,1722823625107,200.0,9.445e-05,30]
[334193416,1722823625152,200.0,9.445e-05,30]
[334193417,1722823625222,200.0,9.445e-05,30]
[334193418,1722823625261,200.0,9.445e-05,30]
[334193419,1722823625331,200.0,9.445e-05,30]
[334193431,1722823681285,227.63850404,9.445e-05,2]
[334193434,1722823696297,227.63850404,9.445e-05,2]
[334193435,1722823700180,1000.0,9.56e-05,2]
[334193443,1722823771947,250.0,9.487e-05,2]
[334193444,1722823782494,200.0,9.518e-05,2]
[334193445,1722823809019,-300.0,9.603e-05,2]
[334193446,1722823809050,-300.0,9.603e-05,2]
[334193447,1722823809081,-6856.2848544,9.604e-05,2]
[334193448,1722823809431,-218.13701418,9.604e-05,2]
[334193449,1722823809467,-199.34,9.604e-05,2]
[334193450,1722823809500,-982.38275495,9.614e-05,2]
[334193451,1722823809544,-4728.92724505,9.614e-05,2]
[334193452,1722823809578,-1021.7337351,9.619e-05,2]
[334193453,1722823809611,-1500.0,9.641e-05,2]
[334193454,1722823809641,-500.0,9.699e-05,2]
[334193455,1722823809674,-300.0,9.699e-05,2]
[334193456,1722823809706,-779.9334,9.7e-05,2]
[334193457,1722823809738,-25.55024338,9.7e-05,2]
[334193458,1722823809800,-150.39546436,9.7e-05,2]
[334193459,1722823809831,-300.0,9.724e-05,2]
[334193460,1722823809864,-150.0,9.728e-05,2]
[334193461,1722823809897,-189.09,9.771e-05,2]
[334193462,1722823809928,-300.0,9.78e-05,2]
[334193463,1722823809959,-150.0,9.799e-05,2]
[334193464,1722823809990,-2148.3776,9.8e-05,2]
[334193465,1722823810020,-933.9323,9.8e-05,2]
[334193466,1722823810050,-2329.3505,9.8e-05,2]
[334193467,1722823810081,-282.7298,9.8e-05,2]
[334193468,1722823810113,-1922.26895917,9.8e-05,2]
[334193469,1722823810162,-8856.14462353,9.8e-05,2]
[334193470,1722823810199,-3534.04116235,9.8e-05,2]
[334193471,1722823810248,-8856.14462353,9.8e-05,2]
[334193472,1722823810294,-8856.14462353,9.8e-05,2]
[334193473,1722823810335,-8856.14462353,9.8e-05,2]
[334193474,1722823810374,-2534.16158436,9.8e-05,2]
[334193475,1722823810405,-5185.7102,9.8e-05,2]
[334193476,1722823810439,-1136.27283917,9.8e-05,2]
[334193477,1722823810493,-1757.19306083,9.8e-05,2]
[334193478,1722823810523,-443.344,9.8e-05,2]